Workbook

Sheet INGRESO DE DATOS
A8: COTIZACION DE SEGURO MEDICO INTERNACIONAL
A10: 1. INGRESE LOS DATOS DEL PROPUESTO ASEGURADO:
C12: Nombre del Asegurado principal: | D12: NOMBRE COMPLETO
F14: Número de adultos en la póliza: | G14: 2 | I14: Número de hijos en la póliza: | J14: 1
F16: Edad del titular: | G16: 18 | I16: Edad de cónyuge: | J16: 18
A19: 2. INGRESE EL NOMBRE DE LA AGENCIA ASESORA:
C21: Nombre de la Agencia: | D21: AGENCIA
A24: 3. ESCOJA EL PRODUCTO PARA VISUALIZAR LA COTIZACION RESPECTIVA :

Sheet Exclusive
A10: Cotización de Seguro Médico Internacional - Bupa EXCLUSIVE Care
H12: =+'INGRESO DE DATOS'!$D$12 -> NOMBRE COMPLETO
H14: =+'INGRESO DE DATOS'!$D$21 -> AGENCIA
J16: =+'INGRESO DE DATOS'!$G$14 -> 2 | M16: =+'INGRESO DE DATOS'!$G$16 -> 18
F17: FECHA DE COTIZACION :
F18: =NOW() -> 2023-08-16T10:38:41 | J18: =+'INGRESO DE DATOS'!$J$14 -> 1 | M18: =+'INGRESO DE DATOS'!$J$16 -> 18
I20: TRUE | K20: COMPLICACIONES DE MATERNIDAD
J22: FALSE
F25: Deducibles | H25: PLAN 1 | I25: PLAN 2 | J25: PLAN 3 | K25: PLAN 4 | L25: PLAN 5 | M25: PLAN 6
F26: Dentro del pais de residencia | H26: n/a | I26: 1000 | J26: 2000 | K26: 5000 | L26: 10000 | M26: 20000
F27: Fuera del pais de residencia | H27: n/a | I27: 2000 | J27: 3000 | K27: 5000 | L27: 10000 | M27: 20000
F30: Tarifas Anuales
F31: Prima de Titular : | H31: n/a | I31: =VLOOKUP($M$16,Tablas!$A$6:$H$29,4,TRUE) -> 17049 | J31: =VLOOKUP($M$16,Tablas!$A$6:$H$29,5,TRUE) -> 11277 | K31: =VLOOKUP($M$16,Tablas!$A$6:$H$29,6,TRUE) -> 7932 | L31: =VLOOKUP($M$16,Tablas!$A$6:$H$29,7,TRUE) -> 5639 | M31: =VLOOKUP($M$16,Tablas!$A$6:$H$29,8,TRUE) -> 4442
F32: Prima de Cónyuge | H32: n/a | I32: =IF($J$16=1,0,(VLOOKUP($M$18,Tablas!$A$6:$H$29,4,TRUE))) -> 17049 | J32: =IF($J$16=1,0,(VLOOKUP($M$18,Tablas!$A$6:$H$29,5,TRUE))) -> 11277 | K32: =IF($J$16=1,0,(VLOOKUP($M$18,Tablas!$A$6:$H$29,6,TRUE))) -> 7932 | L32: =IF($J$16=1,0,(VLOOKUP($M$18,Tablas!$A$6:$H$29,7,TRUE))) -> 5639 | M32: =IF($J$16=1,0,(VLOOKUP($M$18,Tablas!$A$6:$H$29,8,TRUE))) -> 4442
F33: Primas Hijos : | H33: n/a | I33: =IF($J$18=0,0,(VLOOKUP($J$18,Tablas!$A$30:$H$32,4,TRUE))) -> 5919 | J33: =IF($J$18=0,0,(VLOOKUP($J$18,Tablas!$A$30:$H$32,5,TRUE))) -> 4357 | K33: =IF($J$18=0,0,(VLOOKUP($J$18,Tablas!$A$30:$H$32,6,TRUE))) -> 3531 | L33: =IF($J$18=0,0,(VLOOKUP($J$18,Tablas!$A$30:$H$32,7,TRUE))) -> 2972 | M33: =IF($J$18=0,0,(VLOOKUP($J$18,Tablas!$A$30:$H$32,8,TRUE))) -> 2325
F34: Prima Rider Complic. Maternidad | H34: n/a | I34: =+IF($I$20=FALSE,0,Tablas!D$33) -> 0 | J34: =+IF($I$20=FALSE,0,Tablas!E$33) -> 0 | K34: =+IF($I$20=FALSE,0,Tablas!F$33) -> 225 | L34: =+IF($I$20=FALSE,0,Tablas!G$33) -> 225 | M34: =+IF($I$20=FALSE,0,Tablas!H$33) -> 225
F35: TOTAL PRIMA NETA : | H35: n/a | I35: =SUM(I31:I34) -> 40017 | J35: =SUM(J31:J34) -> 26911 | K35: =SUM(K31:K34) -> 19620 | L35: =SUM(L31:L34) -> 14475 | M35: =SUM(M31:M34) -> 11434
F36: Costo Administrativo Anual : | H36: n/a | I36: 75 | J36: 75 | K36: 75 | L36: 75 | M36: 75
F37: GRAN TOTAL : | H37: n/a | I37: =SUM(I35:I36) -> 40092 | J37: =SUM(J35:J36) -> 26986 | K37: =SUM(K35:K36) -> 19695 | L37: =SUM(L35:L36) -> 14550 | M37: =SUM(M35:M36) -> 11509
F39: Tarifas Semestrales
F40: Prima de Titular : | H40: n/a | I40: =VLOOKUP($M$16,Tablas!$A$39:$H$62,4,TRUE) -> 9035.97 | J40: =VLOOKUP($M$16,Tablas!$A$39:$H$62,5,TRUE) -> 5976.81 | K40: =VLOOKUP($M$16,Tablas!$A$39:$H$62,6,TRUE) -> 4203.96 | L40: =VLOOKUP($M$16,Tablas!$A$39:$H$62,7,TRUE) -> 2988.67 | M40: =VLOOKUP($M$16,Tablas!$A$39:$H$62,8,TRUE) -> 2354.26
F41: Prima de Cónyuge | H41: n/a | I41: =IF($J$16=1,0,(VLOOKUP($M$18,Tablas!$A$39:$H$62,4,TRUE))) -> 9035.97 | J41: =IF($J$16=1,0,(VLOOKUP($M$18,Tablas!$A$39:$H$62,5,TRUE))) -> 5976.81 | K41: =IF($J$16=1,0,(VLOOKUP($M$18,Tablas!$A$39:$H$62,6,TRUE))) -> 4203.96 | L41: =IF($J$16=1,0,(VLOOKUP($M$18,Tablas!$A$39:$H$62,7,TRUE))) -> 2988.67 | M41: =IF($J$16=1,0,(VLOOKUP($M$18,Tablas!$A$39:$H$62,8,TRUE))) -> 2354.26
F42: Primas Hijos : | H42: n/a | I42: =IF($J$18=0,0,(VLOOKUP($J$18,Tablas!$A$63:$H$65,4,TRUE))) -> 3137.07 | J42: =IF($J$18=0,0,(VLOOKUP($J$18,Tablas!$A$63:$H$65,5,TRUE))) -> 2309.21 | K42: =IF($J$18=0,0,(VLOOKUP($J$18,Tablas!$A$63:$H$65,6,TRUE))) -> 1871.43 | L42: =IF($J$18=0,0,(VLOOKUP($J$18,Tablas!$A$63:$H$65,7,TRUE))) -> 1575.16 | M42: =IF($J$18=0,0,(VLOOKUP($J$18,Tablas!$A$63:$H$65,8,TRUE))) -> 1232.25
F43: Prima Rider Complic. Maternidad | H43: n/a | I43: =+IF($I$20=FALSE,0,Tablas!D$66) -> 0 | J43: =+IF($I$20=FALSE,0,Tablas!E$66) -> 0 | K43: =+IF($I$20=FALSE,0,Tablas!F$66) -> 119.25 | L43: =+IF($I$20=FALSE,0,Tablas!G$66) -> 119.25 | M43: =+IF($I$20=FALSE,0,Tablas!H$66) -> 119.25
F44: TOTAL PRIMA NETA : | H44: n/a | I44: =SUM(I40:I43) -> 21209.01 | J44: =SUM(J40:J43) -> 14262.83 | K44: =SUM(K40:K43) -> 10398.6 | L44: =SUM(L40:L43) -> 7671.75 | M44: =SUM(M40:M43) -> 6060.02
F45: Costo Administrativo Anual : | H45: n/a | I45: 75 | J45: 75 | K45: 75 | L45: 75 | M45: 75
F46: GRAN TOTAL (1ra Cuota) : | H46: n/a | I46: =SUM(I44:I45) -> 21284.01 | J46: =SUM(J44:J45) -> 14337.83 | K46: =SUM(K44:K45) -> 10473.6 | L46: =SUM(L44:L45) -> 7746.75 | M46: =SUM(M44:M45) -> 6135.02
F47: GRAN TOTAL (2da Cuota) : | H47: n/a | I47: =I44 -> 21209.01 | J47: =J44 -> 14262.83 | K47: 10398.6 | L47: 7671.75 | M47: 6060.02
F48: Tarifas en US $ - Válidas desde 01 Ene 2023

Sheet Privilege
A10: Cotización de Seguro Médico Internacional - Bupa PRIVILEGE Care
H12: =+'INGRESO DE DATOS'!$D$12 -> NOMBRE COMPLETO
H14: =+'INGRESO DE DATOS'!$D$21 -> AGENCIA
J16: =+'INGRESO DE DATOS'!$G$14 -> 2 | M16: =+'INGRESO DE DATOS'!$G$16 -> 18
F17: FECHA DE COTIZACION :
F18: =NOW() -> 2023-08-16T10:38:41 | J18: =+'INGRESO DE DATOS'!$J$14 -> 1 | M18: =+'INGRESO DE DATOS'!$J$16 -> 18
I20: TRUE | K20: COMPLICACIONES DE MATERNIDAD
J22: FALSE
F25: Deducibles | H25: PLAN 1 | I25: PLAN 2 | J25: PLAN 3 | K25: PLAN 4 | L25: PLAN 5 | M25: PLAN 6
F26: Dentro del pais de residencia | H26: n/a | I26: 1000 | J26: 2000 | K26: 5000 | L26: 10000 | M26: 20000
F27: Fuera del pais de residencia | H27: n/a | I27: 2000 | J27: 3000 | K27: 5000 | L27: 10000 | M27: 20000
F30: Tarifas Anuales
F31: Prima de Titular : | H31: n/a | I31: =VLOOKUP($M$16,Tablas!$A$140:$H$163,4,TRUE) -> 14336 | J31: =VLOOKUP($M$16,Tablas!$A$140:$H$163,5,TRUE) -> 9850 | K31: =VLOOKUP($M$16,Tablas!$A$140:$H$163,6,TRUE) -> 6887 | L31: =VLOOKUP($M$16,Tablas!$A$140:$H$163,7,TRUE) -> 4879 | M31: =VLOOKUP($M$16,Tablas!$A$140:$H$163,8,TRUE) -> 3717
F32: Prima de Cónyuge | H32: n/a | I32: =IF($J$16=1,0,(VLOOKUP($M$18,Tablas!$A$140:$H$163,4,TRUE))) -> 14336 | J32: =IF($J$16=1,0,(VLOOKUP($M$18,Tablas!$A$140:$H$163,5,TRUE))) -> 9850 | K32: =IF($J$16=1,0,(VLOOKUP($M$18,Tablas!$A$140:$H$163,6,TRUE))) -> 6887 | L32: =IF($J$16=1,0,(VLOOKUP($M$18,Tablas!$A$140:$H$163,7,TRUE))) -> 4879 | M32: =IF($J$16=1,0,(VLOOKUP($M$18,Tablas!$A$140:$H$163,8,TRUE))) -> 3717
F33: Primas Hijos : | H33: n/a | I33: =IF($J$18=0,0,(VLOOKUP($J$18,Tablas!$A$164:$H$166,4,TRUE))) -> 4978 | J33: =IF($J$18=0,0,(VLOOKUP($J$18,Tablas!$A$164:$H$166,5,TRUE))) -> 3637 | K33: =IF($J$18=0,0,(VLOOKUP($J$18,Tablas!$A$164:$H$166,6,TRUE))) -> 2795 | L33: =IF($J$18=0,0,(VLOOKUP($J$18,Tablas!$A$164:$H$166,7,TRUE))) -> 2356 | M33: =IF($J$18=0,0,(VLOOKUP($J$18,Tablas!$A$164:$H$166,8,TRUE))) -> 1741
F34: Prima Rider Complic. Maternidad | H34: n/a | I34: =+IF($I$20=FALSE,0,Tablas!D$167) -> 0 | J34: =+IF($I$20=FALSE,0,Tablas!E$167) -> 0 | K34: =+IF($I$20=FALSE,0,Tablas!F$167) -> 225 | L34: =+IF($I$20=FALSE,0,Tablas!G$167) -> 225 | M34: =+IF($I$20=FALSE,0,Tablas!H$167) -> 225
F35: TOTAL PRIMA NETA : | H35: n/a | I35: =SUM(I31:I34) -> 33650 | J35: =SUM(J31:J34) -> 23337 | K35: =SUM(K31:K34) -> 16794 | L35: =SUM(L31:L34) -> 12339 | M35: =SUM(M31:M34) -> 9400
F36: Costo Administrativo Anual : | H36: n/a | I36: 75 | J36: 75 | K36: 75 | L36: 75 | M36: 75
F37: GRAN TOTAL : | H37: n/a | I37: =SUM(I35:I36) -> 33725 | J37: =SUM(J35:J36) -> 23412 | K37: =SUM(K35:K36) -> 16869 | L37: =SUM(L35:L36) -> 12414 | M37: =SUM(M35:M36) -> 9475
F39: Tarifas Semestrales
F40: Prima de Titular : | H40: n/a | I40: =VLOOKUP($M$16,Tablas!$A$173:$H$196,4,TRUE) -> 7598.08 | J40: =VLOOKUP($M$16,Tablas!$A$173:$H$196,5,TRUE) -> 5220.5 | K40: =VLOOKUP($M$16,Tablas!$A$173:$H$196,6,TRUE) -> 3650.11 | L40: =VLOOKUP($M$16,Tablas!$A$173:$H$196,7,TRUE) -> 2585.87 | M40: =VLOOKUP($M$16,Tablas!$A$173:$H$196,8,TRUE) -> 1970.01
F41: Prima de Cónyuge | H41: n/a | I41: =IF($J$16=1,0,(VLOOKUP($M$18,Tablas!$A$173:$H$196,4,TRUE))) -> 7598.08 | J41: =IF($J$16=1,0,(VLOOKUP($M$18,Tablas!$A$173:$H$196,5,TRUE))) -> 5220.5 | K41: =IF($J$16=1,0,(VLOOKUP($M$18,Tablas!$A$173:$H$196,6,TRUE))) -> 3650.11 | L41: =IF($J$16=1,0,(VLOOKUP($M$18,Tablas!$A$173:$H$196,7,TRUE))) -> 2585.87 | M41: =IF($J$16=1,0,(VLOOKUP($M$18,Tablas!$A$173:$H$196,8,TRUE))) -> 1970.01
F42: Primas Hijos : | H42: n/a | I42: =IF($J$18=0,0,(VLOOKUP($J$18,Tablas!$A$197:$H$199,4,TRUE))) -> 2638.34 | J42: =IF($J$18=0,0,(VLOOKUP($J$18,Tablas!$A$197:$H$199,5,TRUE))) -> 1927.61 | K42: =IF($J$18=0,0,(VLOOKUP($J$18,Tablas!$A$197:$H$199,6,TRUE))) -> 1481.35 | L42: =IF($J$18=0,0,(VLOOKUP($J$18,Tablas!$A$197:$H$199,7,TRUE))) -> 1248.68 | M42: =IF($J$18=0,0,(VLOOKUP($J$18,Tablas!$A$197:$H$199,8,TRUE))) -> 922.73
F43: Prima Rider Complic. Maternidad | H43: n/a | I43: =+IF($I$20=FALSE,0,Tablas!D$200) -> 0 | J43: =+IF($I$20=FALSE,0,Tablas!E$200) -> 0 | K43: =+IF($I$20=FALSE,0,Tablas!F$200) -> 119.25 | L43: =+IF($I$20=FALSE,0,Tablas!G$200) -> 119.25 | M43: =+IF($I$20=FALSE,0,Tablas!H$200) -> 119.25
F44: TOTAL PRIMA NETA : | H44: n/a | I44: =SUM(I40:I43) -> 17834.5 | J44: =SUM(J40:J43) -> 12368.61 | K44: =SUM(K40:K43) -> 8900.82 | L44: =SUM(L40:L43) -> 6539.67 | M44: =SUM(M40:M43) -> 4982
F45: Costo Administrativo Anual : | H45: n/a | I45: 75 | J45: 75 | K45: 75 | L45: 75 | M45: 75
F46: GRAN TOTAL (1ra Cuota) : | H46: n/a | I46: =SUM(I44:I45) -> 17909.5 | J46: =SUM(J44:J45) -> 12443.61 | K46: =SUM(K44:K45) -> 8975.82 | L46: =SUM(L44:L45) -> 6614.67 | M46: =SUM(M44:M45) -> 5057
F47: GRAN TOTAL (2da Cuota) : | H47: n/a | I47: =I44 -> 17834.5 | J47: =J44 -> 12368.61 | K47: 8900.82 | L47: 6539.67 | M47: 4982
F48: Tarifas en US $ - Válidas desde 01 Ene 2023

Sheet Advantage (Mundial)
C10: Cotización de Seguro Médico Internacional - Bupa ADVANTAGE Care
H12: =+'INGRESO DE DATOS'!$D$12 -> NOMBRE COMPLETO
H14: =+'INGRESO DE DATOS'!$D$21 -> AGENCIA
J16: =+'INGRESO DE DATOS'!$G$14 -> 2 | M16: =+'INGRESO DE DATOS'!$G$16 -> 18
F17: FECHA DE COTIZACION :
F18: =NOW() -> 2023-08-16T10:38:41 | J18: =+'INGRESO DE DATOS'!$J$14 -> 1 | M18: =+'INGRESO DE DATOS'!$J$16 -> 18
I20: FALSE | K20: COMPLICACIONES DE MATERNIDAD
I22: TRUE | K22: TRASPLANTE DE ORGANOS
F25: Deducibles | H25: PLAN 1 | I25: PLAN 2 | J25: PLAN 3 | K25: PLAN 4 | L25: PLAN 5 | M25: PLAN 6
F26: Dentro del pais de residencia | H26: n/a | I26: 1000 | J26: 2000 | K26: 5000 | L26: 10000 | M26: 20000
F27: Fuera del pais de residencia | H27: n/a | I27: 2000 | J27: 3000 | K27: 5000 | L27: 10000 | M27: 20000
F30: Tarifas Anuales
F31: Prima de Titular : | H31: n/a | I31: =VLOOKUP($M$16,Tablas!$A$274:$H$297,4,TRUE) -> 9542 | J31: =VLOOKUP($M$16,Tablas!$A$274:$H$297,5,TRUE) -> 7176 | K31: =VLOOKUP($M$16,Tablas!$A$274:$H$297,6,TRUE) -> 5365 | L31: =VLOOKUP($M$16,Tablas!$A$274:$H$297,7,TRUE) -> 4122 | M31: =VLOOKUP($M$16,Tablas!$A$274:$H$297,8,TRUE) -> 3269
F32: Prima de Cónyuge | H32: n/a | I32: =IF($J$16=1,0,(VLOOKUP($M$18,Tablas!$A$274:$H$297,4,TRUE))) -> 9542 | J32: =IF($J$16=1,0,(VLOOKUP($M$18,Tablas!$A$274:$H$297,5,TRUE))) -> 7176 | K32: =IF($J$16=1,0,(VLOOKUP($M$18,Tablas!$A$274:$H$297,6,TRUE))) -> 5365 | L32: =IF($J$16=1,0,(VLOOKUP($M$18,Tablas!$A$274:$H$297,7,TRUE))) -> 4122 | M32: =IF($J$16=1,0,(VLOOKUP($M$18,Tablas!$A$274:$H$297,8,TRUE))) -> 3269
F33: Primas Hijos : | H33: n/a | I33: =IF($J$18=0,0,(VLOOKUP($J$18,Tablas!$A$298:$H$300,4,TRUE))) -> 4251 | J33: =IF($J$18=0,0,(VLOOKUP($J$18,Tablas!$A$298:$H$300,5,TRUE))) -> 3024 | K33: =IF($J$18=0,0,(VLOOKUP($J$18,Tablas!$A$298:$H$300,6,TRUE))) -> 2340 | L33: =IF($J$18=0,0,(VLOOKUP($J$18,Tablas!$A$298:$H$300,7,TRUE))) -> 2069 | M33: =IF($J$18=0,0,(VLOOKUP($J$18,Tablas!$A$298:$H$300,8,TRUE))) -> 1495
F34: Prima Rider Complic. Maternidad | H34: n/a | I34: =+IF($I$20=FALSE,0,Tablas!D$301) -> 0 | J34: =+IF($I$20=FALSE,0,Tablas!E$301) -> 0 | K34: =+IF($I$20=FALSE,0,Tablas!F$301) -> 0 | L34: =+IF($I$20=FALSE,0,Tablas!G$301) -> 0 | M34: =+IF($I$20=FALSE,0,Tablas!H$301) -> 0
F35: Prima Rider Trasplante Organos | H35: n/a | I35: =IF($I$22=FALSE,0,Tablas!D$302) -> 300 | J35: =IF($I$22=FALSE,0,Tablas!E$302) -> 300 | K35: =IF($I$22=FALSE,0,Tablas!F$302) -> 300 | L35: =IF($I$22=FALSE,0,Tablas!G$302) -> 300 | M35: =IF($I$22=FALSE,0,Tablas!H$302) -> 300
F36: TOTAL PRIMA NETA : | H36: n/a | I36: =SUM(I31:I35) -> 23635 | J36: 17676 | K36: 13370 | L36: 10613 | M36: 8333
F37: Costo Administrativo Anual : | H37: n/a | I37: 75 | J37: 75 | K37: 75 | L37: 75 | M37: 75
F38: GRAN TOTAL : | H38: n/a | I38: =SUM(I36:I37) -> 23710 | J38: =SUM(J36:J37) -> 17751 | K38: =SUM(K36:K37) -> 13445 | L38: =SUM(L36:L37) -> 10688 | M38: =SUM(M36:M37) -> 8408
F40: Tarifas Semestrales
F41: Prima de Titular : | H41: n/a | I41: =VLOOKUP($M$16,Tablas!$A$307:$H$330,4,TRUE) -> 5057.26 | J41: =VLOOKUP($M$16,Tablas!$A$307:$H$330,5,TRUE) -> 3803.28 | K41: =VLOOKUP($M$16,Tablas!$A$307:$H$330,6,TRUE) -> 2843.45 | L41: =VLOOKUP($M$16,Tablas!$A$307:$H$330,7,TRUE) -> 2184.66 | M41: =VLOOKUP($M$16,Tablas!$A$307:$H$330,8,TRUE) -> 1732.57
F42: Prima de Cónyuge | H42: n/a | I42: =IF($J$16=1,0,(VLOOKUP($M$18,Tablas!$A$307:$H$330,4,TRUE))) -> 5057.26 | J42: =IF($J$16=1,0,(VLOOKUP($M$18,Tablas!$A$307:$H$330,5,TRUE))) -> 3803.28 | K42: =IF($J$16=1,0,(VLOOKUP($M$18,Tablas!$A$307:$H$330,6,TRUE))) -> 2843.45 | L42: =IF($J$16=1,0,(VLOOKUP($M$18,Tablas!$A$307:$H$330,7,TRUE))) -> 2184.66 | M42: =IF($J$16=1,0,(VLOOKUP($M$18,Tablas!$A$307:$H$330,8,TRUE))) -> 1732.57
F43: Primas Hijos : | H43: n/a | I43: =IF($J$18=0,0,(VLOOKUP($J$18,Tablas!$A$331:$H$333,4,TRUE))) -> 2253.03 | J43: =IF($J$18=0,0,(VLOOKUP($J$18,Tablas!$A$331:$H$333,5,TRUE))) -> 1602.72 | K43: =IF($J$18=0,0,(VLOOKUP($J$18,Tablas!$A$331:$H$333,6,TRUE))) -> 1240.2 | L43: =IF($J$18=0,0,(VLOOKUP($J$18,Tablas!$A$331:$H$333,7,TRUE))) -> 1096.57 | M43: =IF($J$18=0,0,(VLOOKUP($J$18,Tablas!$A$331:$H$333,8,TRUE))) -> 792.35
F44: Prima Rider Complic. Maternidad | H44: n/a | I44: =+IF($I$20=FALSE,0,Tablas!D$334) -> 0 | J44: =+IF($I$20=FALSE,0,Tablas!E$334) -> 0 | K44: =+IF($I$20=FALSE,0,Tablas!F$334) -> 0 | L44: =+IF($I$20=FALSE,0,Tablas!G$334) -> 0 | M44: =+IF($I$20=FALSE,0,Tablas!H$334) -> 0
F45: Prima Rider Trasplante Organos | H45: n/a | I45: =IF($I$22=FALSE,0,Tablas!D$335) -> 159 | J45: =IF($I$22=FALSE,0,Tablas!E$335) -> 159 | K45: =IF($I$22=FALSE,0,Tablas!F$335) -> 159 | L45: =IF($I$22=FALSE,0,Tablas!G$335) -> 159 | M45: =IF($I$22=FALSE,0,Tablas!H$335) -> 159
F46: TOTAL PRIMA NETA : | H46: n/a | I46: =SUM(I41:I45) -> 12526.55 | J46: 9368.28 | K46: 7086.1 | L46: 5624.89 | M46: 4416.49
F47: Costo Administrativo Anual : | H47: n/a | I47: 75 | J47: 75 | K47: 75 | L47: 75 | M47: 75
F48: GRAN TOTAL (1ra Cuota) : | H48: n/a | I48: =SUM(I46:I47) -> 12601.55 | J48: =SUM(J46:J47) -> 9443.28 | K48: =SUM(K46:K47) -> 7161.1 | L48: =SUM(L46:L47) -> 5699.89 | M48: =SUM(M46:M47) -> 4491.49
F49: GRAN TOTAL (2da Cuota) : | H49: n/a | I49: =I46 -> 12526.55 | J49: =J46 -> 9368.28 | K49: 7086.1 | L49: 5624.89 | M49: 4416.49
F50: Tarifas en US $ - Válidas desde 01 enero 2023
F51: Este presupuesto solamente tiene carácter informativo y en ningún momento expresa compromiso legal para suministrarle cobertura de seguro. La emisión de una póliza de seguro Bupa está sujeta a todas las evaluaciones de riesgo por parte de Bupa y a la recepción de todos los pagos de prima requeridos.

Sheet Advantage (LA) (hidden)
A10: Cotización de Seguro Médico Internacional - Bupa ADVANTAGE Care (cobertura solo Latinoamérica)
A12: Bupa Advantage Care (cobertura solo en Latinoamérica) | H12: =+'INGRESO DE DATOS'!$D$12 -> NOMBRE COMPLETO
A13: Cobertura Máxima anual | C13: US $ 3,500,000
A14: Cobertura Geografica | C14: Limitada a Latinoamérica excluyendo México | H14: =+'INGRESO DE DATOS'!$D$21 -> AGENCIA
A15: Condiciones médicas cubiertas | C15: Todas las condiciones médicas
A16: Redes de proveedores | C16: Red de Proveedores "Bupa Advantage" | J16: =+'INGRESO DE DATOS'!$G$14 -> 2 | M16: =+'INGRESO DE DATOS'!$G$16 -> 18
A17: Opciones fuera de la Red | C17: NO, solo en casos de emergencia | F17: FECHA DE COTIZACION :
A18: Requiere preautorización | C18: SI, 30% de penalización por omitir prenotificación | F18: =NOW() -> 2023-08-16T10:38:41 | J18: =+'INGRESO DE DATOS'!$J$14 -> 1 | M18: =+'INGRESO DE DATOS'!$J$16 -> 18
A20: Número máximo de días de hospitalización | C20: Ilimitado | I20: TRUE | K20: COMPLICACIONES DE MATERNIDAD
A21: Habitación y alimentación | C21: 100% dentro de Red Bupa
C22: "UCR" para L.A. en emergencias fuera de Red Bupa | I22: TRUE | K22: TRASPLANTE DE ORGANOS
A23: Cuidados Intensivos | C23: 100% dentro de Red Bupa
C24: "UCR" para L.A. en emergencias fuera de Red Bupa
A25: Cobertura de Maternidad | C25: $5,000 (Excepto planes 4,5, y 6) | F25: Deducibles | H25: PLAN 1 | I25: PLAN 2 | J25: PLAN 3 | K25: PLAN 4 | L25: PLAN 5 | M25: PLAN 6
A26: Cobertura Provisional de Recién Nacido | C26: $30,000 por los primeros 90 días | F26: Dentro del pais de residencia | H26: n/a | I26: 1000 | J26: 2000 | K26: 5000 | L26: 10000 | M26: 20000
A27: Cuidado del Recién Nacido saludable | C27: Ya incluída dentro del beneficio de Maternidad | F27: Fuera del pais de residencia | H27: n/a | I27: 2000 | J27: 3000 | K27: 5000 | L27: 10000 | M27: 20000
A28: Cobertura de Complicaciones de Maternidad | C28: Disponible a través de cobertura opcional adicional
A29: Trasplante de Organos | C29: $1,000,000 de por vida, por diagnóstico
A30: Condiciones congénitas y hereditarias | C30: <18 años $300,000 de por vida; >=18 al 100% | F30: Tarifas Anuales
A31: Coberturas opcionales (Riders) | C31: Complicaciones de Maternidad por $500,000 | F31: Prima de Titular : | H31: n/a | I31: =VLOOKUP($M$16,Tablas!$A$341:$H$364,4,TRUE) -> 7386 | J31: =VLOOKUP($M$16,Tablas!$A$341:$H$364,5,TRUE) -> 5540 | K31: =VLOOKUP($M$16,Tablas!$A$341:$H$364,6,TRUE) -> 4147 | L31: =VLOOKUP($M$16,Tablas!$A$341:$H$364,7,TRUE) -> 3174 | M31: =VLOOKUP($M$16,Tablas!$A$341:$H$364,8,TRUE) -> 2507
C32: Trasplante de órganos por $ 300,000 adicionales | F32: Prima de Cónyuge | H32: n/a | I32: =IF($J$16=1,0,(VLOOKUP($M$18,Tablas!$A$341:$H$364,4,TRUE))) -> 7386 | J32: =IF($J$16=1,0,(VLOOKUP($M$18,Tablas!$A$341:$H$364,5,TRUE))) -> 5540 | K32: =IF($J$16=1,0,(VLOOKUP($M$18,Tablas!$A$341:$H$364,6,TRUE))) -> 4147 | L32: =IF($J$16=1,0,(VLOOKUP($M$18,Tablas!$A$341:$H$364,7,TRUE))) -> 3174 | M32: =IF($J$16=1,0,(VLOOKUP($M$18,Tablas!$A$341:$H$364,8,TRUE))) -> 2507
A33: Acompañamiento de menores hospitalizados | C33: $300 por día | F33: Primas Hijos : | H33: n/a | I33: =IF($J$18=0,0,(VLOOKUP($J$18,Tablas!$A$365:$H$367,4,TRUE))) -> 3301 | J33: =IF($J$18=0,0,(VLOOKUP($J$18,Tablas!$A$365:$H$367,5,TRUE))) -> 2352 | K33: =IF($J$18=0,0,(VLOOKUP($J$18,Tablas!$A$365:$H$367,6,TRUE))) -> 1821 | L33: =IF($J$18=0,0,(VLOOKUP($J$18,Tablas!$A$365:$H$367,7,TRUE))) -> 1617 | M33: =IF($J$18=0,0,(VLOOKUP($J$18,Tablas!$A$365:$H$367,8,TRUE))) -> 1166
A34: Ambulancia aérea | C34: $100,000 por año y ticket aéreo de retorno | F34: Prima Rider Complic. Maternidad | H34: n/a | I34: =+IF($I$20=FALSE,0,Tablas!D$368) -> 0 | J34: =+IF($I$20=FALSE,0,Tablas!E$368) -> 0 | K34: =+IF($I$20=FALSE,0,Tablas!F$368) -> 0 | L34: =+IF($I$20=FALSE,0,Tablas!G$368) -> 0 | M34: =+IF($I$20=FALSE,0,Tablas!H$368) -> 0
A35: Repatriación restos mortales | C35: 1 | F35: Prima Rider Trasplante Organos | H35: n/a | I35: =IF($I$22=FALSE,0,Tablas!D$369) -> 0 | J35: =IF($I$22=FALSE,0,Tablas!E$369) -> 0 | K35: =IF($I$22=FALSE,0,Tablas!F$369) -> 0 | L35: =IF($I$22=FALSE,0,Tablas!G$369) -> 0 | M35: =IF($I$22=FALSE,0,Tablas!H$369) -> 0
A36: Medicamentos por receta | C36: $6,000 por Asegurado, por año póliza | F36: TOTAL PRIMA NETA : | H36: n/a | I36: =SUM(I31:I35) -> 18073 | J36: 13432 | K36: 10115 | L36: 7965 | M36: 6180
A37: Almacenamiento de sangre de cordon umbilical | C37: $500 (Excepto planes 4,5, y 6) | F37: Costo Administrativo Anual : | H37: n/a | I37: 75 | J37: 75 | K37: 75 | L37: 75 | M37: 75
F38: GRAN TOTAL : | H38: n/a | I38: =SUM(I36:I37) -> 18148 | J38: =SUM(J36:J37) -> 13507 | K38: =SUM(K36:K37) -> 10190 | L38: =SUM(L36:L37) -> 8040 | M38: =SUM(M36:M37) -> 6255
A39: Atención médica en el hogar | C39: 100% de usual/acostumbrado y razonable
A40: Rehabilitación | C40: 100% de usual/acostumbrado y razonable | F40: Tarifas Semestrales
A41: Residencia y cuidados paliativos | C41: 100% de usual/acostumbrado y razonable | F41: Prima de Titular : | H41: n/a | I41: =VLOOKUP($M$16,Tablas!$A$374:$H$397,4,TRUE) -> 3914.58 | J41: =VLOOKUP($M$16,Tablas!$A$374:$H$397,5,TRUE) -> 2936.2 | K41: =VLOOKUP($M$16,Tablas!$A$374:$H$397,6,TRUE) -> 2197.91 | L41: =VLOOKUP($M$16,Tablas!$A$374:$H$397,7,TRUE) -> 1682.22 | M41: =VLOOKUP($M$16,Tablas!$A$374:$H$397,8,TRUE) -> 1328.71
A42: Cobertura de actividades peligrosas | C42: 1 | F42: Prima de Cónyuge | H42: n/a | I42: =IF($J$16=1,0,(VLOOKUP($M$18,Tablas!$A$374:$H$397,4,TRUE))) -> 3914.58 | J42: =IF($J$16=1,0,(VLOOKUP($M$18,Tablas!$A$374:$H$397,5,TRUE))) -> 2936.2 | K42: =IF($J$16=1,0,(VLOOKUP($M$18,Tablas!$A$374:$H$397,6,TRUE))) -> 2197.91 | L42: =IF($J$16=1,0,(VLOOKUP($M$18,Tablas!$A$374:$H$397,7,TRUE))) -> 1682.22 | M42: =IF($J$16=1,0,(VLOOKUP($M$18,Tablas!$A$374:$H$397,8,TRUE))) -> 1328.71
A43: Chequeos generales de rutina | C43: Hasta US$150 por año póliza.Sin deducible | F43: Primas Hijos : | H43: n/a | I43: =IF($J$18=0,0,(VLOOKUP($J$18,Tablas!$A$398:$H$400,4,TRUE))) -> 1749.53 | J43: =IF($J$18=0,0,(VLOOKUP($J$18,Tablas!$A$398:$H$400,5,TRUE))) -> 1246.56 | K43: =IF($J$18=0,0,(VLOOKUP($J$18,Tablas!$A$398:$H$400,6,TRUE))) -> 965.13 | L43: =IF($J$18=0,0,(VLOOKUP($J$18,Tablas!$A$398:$H$400,7,TRUE))) -> 857.01 | M43: =IF($J$18=0,0,(VLOOKUP($J$18,Tablas!$A$398:$H$400,8,TRUE))) -> 617.98
A44: Cobertura de VIH, SIDA, CAS | C44: Solo como efecto de transfusión de sangre | F44: Prima Rider Complic. Maternidad | H44: n/a | I44: =+IF($I$20=FALSE,0,Tablas!D$401) -> 0 | J44: =+IF($I$20=FALSE,0,Tablas!E$401) -> 0 | K44: =+IF($I$20=FALSE,0,Tablas!F$401) -> 0 | L44: =+IF($I$20=FALSE,0,Tablas!G$401) -> 0 | M44: =+IF($I$20=FALSE,0,Tablas!H$401) -> 0
A45: Cobertura de brazos y piernas artificiales | C45: $30,000 por año y hasta $120,000 de por vida | F45: Prima Rider Trasplante Organos | H45: n/a | I45: =IF($I$22=FALSE,0,Tablas!D$402) -> 0 | J45: =IF($I$22=FALSE,0,Tablas!E$402) -> 0 | K45: =IF($I$22=FALSE,0,Tablas!F$402) -> 0 | L45: =IF($I$22=FALSE,0,Tablas!G$402) -> 0 | M45: =IF($I$22=FALSE,0,Tablas!H$402) -> 0
A46: Cobertura extendida para dependientes en caso de muerte de asegurado principal | C46: 2 años sin costo | F46: TOTAL PRIMA NETA : | H46: n/a | I46: =SUM(I41:I45) -> 9578.69 | J46: 7118.96 | K46: 5360.95 | L46: 4221.45 | M46: 3275.4
F47: Costo Administrativo Anual : | H47: n/a | I47: 75 | J47: 75 | K47: 75 | L47: 75 | M47: 75
F48: GRAN TOTAL (1ra Cuota) : | H48: n/a | I48: =SUM(I46:I47) -> 9653.69 | J48: =SUM(J46:J47) -> 7193.96 | K48: =SUM(K46:K47) -> 5435.95 | L48: =SUM(L46:L47) -> 4296.45 | M48: =SUM(M46:M47) -> 3350.4
F49: GRAN TOTAL (2da Cuota) : | H49: n/a | I49: =I46 -> 9578.69 | J49: =J46 -> 7118.96 | K49: 5360.95 | L49: 4221.45 | M49: 3275.4
F50: Tarifas en US $ - Válidas desde 01 Ene 2013

Sheet Secure
C10: Cotización de Seguro Médico Internacional - Bupa SECURE Care
H12: =+'INGRESO DE DATOS'!$D$12 -> NOMBRE COMPLETO
H14: =+'INGRESO DE DATOS'!$D$21 -> AGENCIA
J16: =+'INGRESO DE DATOS'!$G$14 -> 2 | M16: =+'INGRESO DE DATOS'!$G$16 -> 18
F17: FECHA DE COTIZACION :
F18: =NOW() -> 2023-08-16T10:38:41 | J18: =+'INGRESO DE DATOS'!$J$14 -> 1 | M18: =+'INGRESO DE DATOS'!$J$16 -> 18
I20: TRUE | K20: COMPLICACIONES DE MATERNIDAD
I22: TRUE | K22: TRASPLANTE DE ORGANOS
F25: Deducibles | H25: PLAN 1 | I25: PLAN 2 | J25: PLAN 3 | K25: PLAN 4 | L25: PLAN 5 | M25: PLAN 6
F26: Dentro del pais de residencia | H26: n/a | I26: 1000 | J26: 2000 | K26: 5000 | L26: 10000 | M26: 20000
F27: Fuera del pais de residencia | H27: n/a | I27: 2000 | J27: 3000 | K27: 5000 | L27: 10000 | M27: 20000
F30: Tarifas Anuales
F31: Prima de Titular : | H31: n/a | I31: =VLOOKUP($M$16,Tablas!$A$408:$H$431,4,TRUE) -> 7366 | J31: =VLOOKUP($M$16,Tablas!$A$408:$H$431,5,TRUE) -> 5776 | K31: =VLOOKUP($M$16,Tablas!$A$408:$H$431,6,TRUE) -> 4344 | L31: =VLOOKUP($M$16,Tablas!$A$408:$H$431,7,TRUE) -> 3756 | M31: =VLOOKUP($M$16,Tablas!$A$408:$H$431,8,TRUE) -> 2860
F32: Prima de Cónyuge | H32: n/a | I32: =IF($J$16=1,0,(VLOOKUP($M$18,Tablas!$A$408:$H$431,4,TRUE))) -> 7366 | J32: =IF($J$16=1,0,(VLOOKUP($M$18,Tablas!$A$408:$H$431,5,TRUE))) -> 5776 | K32: =IF($J$16=1,0,(VLOOKUP($M$18,Tablas!$A$408:$H$431,6,TRUE))) -> 4344 | L32: =IF($J$16=1,0,(VLOOKUP($M$18,Tablas!$A$408:$H$431,7,TRUE))) -> 3756 | M32: =IF($J$16=1,0,(VLOOKUP($M$18,Tablas!$A$408:$H$431,8,TRUE))) -> 2860
F33: Primas Hijos : | H33: n/a | I33: =IF($J$18=0,0,(VLOOKUP($J$18,Tablas!$A$432:$H$434,4,TRUE))) -> 3556 | J33: =IF($J$18=0,0,(VLOOKUP($J$18,Tablas!$A$432:$H$434,5,TRUE))) -> 2094 | K33: =IF($J$18=0,0,(VLOOKUP($J$18,Tablas!$A$432:$H$434,6,TRUE))) -> 1749 | L33: =IF($J$18=0,0,(VLOOKUP($J$18,Tablas!$A$432:$H$434,7,TRUE))) -> 1507 | M33: =IF($J$18=0,0,(VLOOKUP($J$18,Tablas!$A$432:$H$434,8,TRUE))) -> 1113
F34: Prima Rider Complic. Maternidad | H34: n/a | I34: =+IF($I$20=FALSE,0,Tablas!D$435) -> 225 | J34: =+IF($I$20=FALSE,0,Tablas!E$435) -> 225 | K34: =+IF($I$20=FALSE,0,Tablas!F$435) -> 225 | L34: =+IF($I$20=FALSE,0,Tablas!G$435) -> 225 | M34: =+IF($I$20=FALSE,0,Tablas!H$435) -> 225
F35: Prima Rider Trasplante Organos | H35: n/a | I35: =IF($I$22=FALSE,0,Tablas!D$436) -> 300 | J35: =IF($I$22=FALSE,0,Tablas!E$436) -> 300 | K35: =IF($I$22=FALSE,0,Tablas!F$436) -> 300 | L35: =IF($I$22=FALSE,0,Tablas!G$436) -> 300 | M35: =IF($I$22=FALSE,0,Tablas!H$436) -> 300
F36: TOTAL PRIMA NETA : | H36: n/a | I36: =SUM(I31:I35) -> 18813 | J36: 14171 | K36: 10962 | L36: 9544 | M36: 7358
F37: Costo Administrativo Anual : | H37: n/a | I37: 75 | J37: 75 | K37: 75 | L37: 75 | M37: 75
F38: GRAN TOTAL : | H38: n/a | I38: =SUM(I36:I37) -> 18888 | J38: =SUM(J36:J37) -> 14246 | K38: =SUM(K36:K37) -> 11037 | L38: =SUM(L36:L37) -> 9619 | M38: =SUM(M36:M37) -> 7433
F40: Tarifas Semestrales
F41: Prima de Titular : | H41: n/a | I41: =VLOOKUP($M$16,Tablas!$A$441:$H$464,4,TRUE) -> 3903.98 | J41: =VLOOKUP($M$16,Tablas!$A$441:$H$464,5,TRUE) -> 3061.28 | K41: =VLOOKUP($M$16,Tablas!$A$441:$H$464,6,TRUE) -> 2302.32 | L41: =VLOOKUP($M$16,Tablas!$A$441:$H$464,7,TRUE) -> 1990.68 | M41: =VLOOKUP($M$16,Tablas!$A$441:$H$464,8,TRUE) -> 1515.8
F42: Prima de Cónyuge | H42: n/a | I42: =IF($J$16=1,0,(VLOOKUP($M$18,Tablas!$A$441:$H$464,4,TRUE))) -> 3903.98 | J42: =IF($J$16=1,0,(VLOOKUP($M$18,Tablas!$A$441:$H$464,5,TRUE))) -> 3061.28 | K42: =IF($J$16=1,0,(VLOOKUP($M$18,Tablas!$A$441:$H$464,6,TRUE))) -> 2302.32 | L42: =IF($J$16=1,0,(VLOOKUP($M$18,Tablas!$A$441:$H$464,7,TRUE))) -> 1990.68 | M42: =IF($J$16=1,0,(VLOOKUP($M$18,Tablas!$A$441:$H$464,8,TRUE))) -> 1515.8
F43: Primas Hijos : | H43: n/a | I43: =IF($J$18=0,0,(VLOOKUP($J$18,Tablas!$A$465:$H$467,4,TRUE))) -> 1884.68 | J43: =IF($J$18=0,0,(VLOOKUP($J$18,Tablas!$A$465:$H$467,5,TRUE))) -> 1109.82 | K43: =IF($J$18=0,0,(VLOOKUP($J$18,Tablas!$A$465:$H$467,6,TRUE))) -> 926.97 | L43: =IF($J$18=0,0,(VLOOKUP($J$18,Tablas!$A$465:$H$467,7,TRUE))) -> 798.71 | M43: =IF($J$18=0,0,(VLOOKUP($J$18,Tablas!$A$465:$H$467,8,TRUE))) -> 589.89
F44: Prima Rider Complic. Maternidad | H44: n/a | I44: =+IF($I$20=FALSE,0,Tablas!D$468) -> 119.25 | J44: =+IF($I$20=FALSE,0,Tablas!E$468) -> 119.25 | K44: =+IF($I$20=FALSE,0,Tablas!F$468) -> 119.25 | L44: =+IF($I$20=FALSE,0,Tablas!G$468) -> 119.25 | M44: =+IF($I$20=FALSE,0,Tablas!H$468) -> 119.25
F45: Prima Rider Trasplante Organos | H45: n/a | I45: =IF($I$22=FALSE,0,Tablas!D$469) -> 159 | J45: =IF($I$22=FALSE,0,Tablas!E$469) -> 159 | K45: =IF($I$22=FALSE,0,Tablas!F$469) -> 159 | L45: =IF($I$22=FALSE,0,Tablas!G$469) -> 159 | M45: =IF($I$22=FALSE,0,Tablas!H$469) -> 159
F46: TOTAL PRIMA NETA : | H46: n/a | I46: =SUM(I41:I45) -> 9970.89 | J46: 7510.63 | K46: 5809.86 | L46: 5058.32 | M46: 3899.74
F47: Costo Administrativo Anual : | H47: n/a | I47: 75 | J47: 75 | K47: 75 | L47: 75 | M47: 75
F48: GRAN TOTAL (1ra Cuota) : | H48: n/a | I48: =SUM(I46:I47) -> 10045.89 | J48: =SUM(J46:J47) -> 7585.63 | K48: =SUM(K46:K47) -> 5884.86 | L48: =SUM(L46:L47) -> 5133.32 | M48: =SUM(M46:M47) -> 3974.74
F49: GRAN TOTAL (2da Cuota) : | H49: n/a | I49: =I46 -> 9970.89 | J49: =J46 -> 7510.63 | K49: 5809.86 | L49: 5058.32 | M49: 3899.74
F50: Tarifas en US $ - Válidas desde 01 enero 2023
F52: Este presupuesto solamente tiene carácter informativo y en ningún momento expresa compromiso legal para suministrarle cobertura de seguro. La emisión de una póliza de seguro Bupa está sujeta a todas las evaluaciones de riesgo por parte de Bupa y a la recepción de todos los pagos de prima requeridos.

Sheet Essential
C10: Cotización de Seguro Médico Internacional - Bupa ESSENTIAL Care
H12: =+'INGRESO DE DATOS'!$D$12 -> NOMBRE COMPLETO
H14: =+'INGRESO DE DATOS'!$D$21 -> AGENCIA
J16: =+'INGRESO DE DATOS'!$G$14 -> 2 | M16: =+'INGRESO DE DATOS'!$G$16 -> 18
F17: FECHA DE COTIZACION :
F18: =NOW() -> 2023-08-16T10:38:41 | J18: =+'INGRESO DE DATOS'!$J$14 -> 1 | M18: =+'INGRESO DE DATOS'!$J$16 -> 18
I20: FALSE | K20: COMPLICACIONES DE MATERNIDAD
I22: FALSE | K22: TRASPLANTE DE ORGANOS
F25: Deducibles | H25: PLAN 1 | I25: PLAN 2 | J25: PLAN 3 | K25: PLAN 4 | L25: PLAN 5 | M25: PLAN 6
F26: Dentro del pais de residencia | H26: n/a | I26: 1000 | J26: 2000 | K26: 5000 | L26: 10000 | M26: 20000
F27: Fuera del pais de residencia | H27: n/a | I27: 2000 | J27: 3000 | K27: 5000 | L27: 10000 | M27: 20000
F30: Tarifas Anuales
F31: Prima de Titular : | H31: n/a | I31: =VLOOKUP($M$16,Tablas!$A$475:$H$498,4,TRUE) -> 4977 | J31: =VLOOKUP($M$16,Tablas!$A$475:$H$498,5,TRUE) -> 3897 | K31: =VLOOKUP($M$16,Tablas!$A$475:$H$498,6,TRUE) -> 2934 | L31: =VLOOKUP($M$16,Tablas!$A$475:$H$498,7,TRUE) -> 2544 | M31: =VLOOKUP($M$16,Tablas!$A$475:$H$498,8,TRUE) -> 1925
F32: Prima de Cónyuge | H32: n/a | I32: =IF($J$16=1,0,(VLOOKUP($M$18,Tablas!$A$475:$H$498,4,TRUE))) -> 4977 | J32: =IF($J$16=1,0,(VLOOKUP($M$18,Tablas!$A$475:$H$498,5,TRUE))) -> 3897 | K32: =IF($J$16=1,0,(VLOOKUP($M$18,Tablas!$A$475:$H$498,6,TRUE))) -> 2934 | L32: =IF($J$16=1,0,(VLOOKUP($M$18,Tablas!$A$475:$H$498,7,TRUE))) -> 2544 | M32: =IF($J$16=1,0,(VLOOKUP($M$18,Tablas!$A$475:$H$498,8,TRUE))) -> 1925
F33: Primas Hijos : | H33: n/a | I33: =IF($J$18=0,0,(VLOOKUP($J$18,Tablas!$A$499:$H$501,4,TRUE))) -> 2417 | J33: =IF($J$18=0,0,(VLOOKUP($J$18,Tablas!$A$499:$H$501,5,TRUE))) -> 1429 | K33: =IF($J$18=0,0,(VLOOKUP($J$18,Tablas!$A$499:$H$501,6,TRUE))) -> 1193 | L33: =IF($J$18=0,0,(VLOOKUP($J$18,Tablas!$A$499:$H$501,7,TRUE))) -> 1035 | M33: =IF($J$18=0,0,(VLOOKUP($J$18,Tablas!$A$499:$H$501,8,TRUE))) -> 766
F34: Prima Rider Complic. Maternidad | H34: n/a | I34: =+IF($I$20=FALSE,0,Tablas!D$502) -> 0 | J34: =+IF($I$20=FALSE,0,Tablas!E$502) -> 0 | K34: =+IF($I$20=FALSE,0,Tablas!F$502) -> 0 | L34: =+IF($I$20=FALSE,0,Tablas!G$502) -> 0 | M34: =+IF($I$20=FALSE,0,Tablas!H$502) -> 0
F35: Prima Rider Trasplante Organos | H35: n/a | I35: =IF($I$22=FALSE,0,Tablas!D$503) -> 0 | J35: =IF($I$22=FALSE,0,Tablas!E$503) -> 0 | K35: =IF($I$22=FALSE,0,Tablas!F$503) -> 0 | L35: =IF($I$22=FALSE,0,Tablas!G$503) -> 0 | M35: =IF($I$22=FALSE,0,Tablas!H$503) -> 0
F36: TOTAL PRIMA NETA : | H36: n/a | I36: =SUM(I31:I35) -> 12371 | J36: 9223 | K36: 7061 | L36: 6123 | M36: 4616
F37: Costo Administrativo Anual : | H37: n/a | I37: 75 | J37: 75 | K37: 75 | L37: 75 | M37: 75
F38: GRAN TOTAL : | H38: n/a | I38: =SUM(I36:I37) -> 12446 | J38: =SUM(J36:J37) -> 9298 | K38: =SUM(K36:K37) -> 7136 | L38: =SUM(L36:L37) -> 6198 | M38: =SUM(M36:M37) -> 4691
F40: Tarifas Semestrales
F41: Prima de Titular : | H41: n/a | I41: =VLOOKUP($M$16,Tablas!$A$508:$H$531,4,TRUE) -> 2637.81 | J41: =VLOOKUP($M$16,Tablas!$A$508:$H$531,5,TRUE) -> 2065.41 | K41: =VLOOKUP($M$16,Tablas!$A$508:$H$531,6,TRUE) -> 1555.02 | L41: =VLOOKUP($M$16,Tablas!$A$508:$H$531,7,TRUE) -> 1348.32 | M41: =VLOOKUP($M$16,Tablas!$A$508:$H$531,8,TRUE) -> 1020.25
F42: Prima de Cónyuge | H42: n/a | I42: =IF($J$16=1,0,(VLOOKUP($M$18,Tablas!$A$508:$H$531,4,TRUE))) -> 2637.81 | J42: =IF($J$16=1,0,(VLOOKUP($M$18,Tablas!$A$508:$H$531,5,TRUE))) -> 2065.41 | K42: =IF($J$16=1,0,(VLOOKUP($M$18,Tablas!$A$508:$H$531,6,TRUE))) -> 1555.02 | L42: =IF($J$16=1,0,(VLOOKUP($M$18,Tablas!$A$508:$H$531,7,TRUE))) -> 1348.32 | M42: =IF($J$16=1,0,(VLOOKUP($M$18,Tablas!$A$508:$H$531,8,TRUE))) -> 1020.25
F43: Primas Hijos : | H43: n/a | I43: =IF($J$18=0,0,(VLOOKUP($J$18,Tablas!$A$532:$H$534,4,TRUE))) -> 1281.01 | J43: =IF($J$18=0,0,(VLOOKUP($J$18,Tablas!$A$532:$H$534,5,TRUE))) -> 757.37 | K43: =IF($J$18=0,0,(VLOOKUP($J$18,Tablas!$A$532:$H$534,6,TRUE))) -> 632.29 | L43: =IF($J$18=0,0,(VLOOKUP($J$18,Tablas!$A$532:$H$534,7,TRUE))) -> 548.55 | M43: =IF($J$18=0,0,(VLOOKUP($J$18,Tablas!$A$532:$H$534,8,TRUE))) -> 405.98
F44: Prima Rider Complic. Maternidad | H44: n/a | I44: =+IF($I$20=FALSE,0,Tablas!D$535) -> 0 | J44: =+IF($I$20=FALSE,0,Tablas!E$535) -> 0 | K44: =+IF($I$20=FALSE,0,Tablas!F$535) -> 0 | L44: =+IF($I$20=FALSE,0,Tablas!G$535) -> 0 | M44: =+IF($I$20=FALSE,0,Tablas!H$535) -> 0
F45: Prima Rider Trasplante Organos | H45: n/a | I45: =IF($I$22=FALSE,0,Tablas!D$536) -> 0 | J45: =IF($I$22=FALSE,0,Tablas!E$536) -> 0 | K45: =IF($I$22=FALSE,0,Tablas!F$536) -> 0 | L45: =IF($I$22=FALSE,0,Tablas!G$536) -> 0 | M45: =IF($I$22=FALSE,0,Tablas!H$536) -> 0
F46: TOTAL PRIMA NETA : | H46: n/a | I46: =SUM(I41:I45) -> 6556.63 | J46: 4888.19 | K46: 3742.33 | L46: 3245.19 | M46: 2446.48
F47: Costo Administrativo Anual : | H47: n/a | I47: 75 | J47: 75 | K47: 75 | L47: 75 | M47: 75
F48: GRAN TOTAL (1ra Cuota) : | H48: n/a | I48: =SUM(I46:I47) -> 6631.63 | J48: =SUM(J46:J47) -> 4963.19 | K48: =SUM(K46:K47) -> 3817.33 | L48: =SUM(L46:L47) -> 3320.19 | M48: =SUM(M46:M47) -> 2521.48
F49: GRAN TOTAL (2da Cuota) : | H49: n/a | I49: =I46 -> 6556.63 | J49: =J46 -> 4888.19 | K49: 3742.33 | L49: 3245.19 | M49: 2446.48
F50: Tarifas en US $ - Válidas desde 01 enero 2023
F52: Este presupuesto solamente tiene carácter informativo y en ningún momento expresa compromiso legal para suministrarle cobertura de seguro. La emisión de una póliza de seguro Bupa está sujeta a todas las evaluaciones de riesgo por parte de Bupa y a la recepción de todos los pagos de prima requeridos.

Sheet Critical
C10: Cotización de Seguro Médico Internacional - Bupa CRITICAL Care
H12: =+'INGRESO DE DATOS'!$D$12 -> NOMBRE COMPLETO
H14: =+'INGRESO DE DATOS'!$D$21 -> AGENCIA
J16: =+'INGRESO DE DATOS'!$G$14 -> 2 | M16: =+'INGRESO DE DATOS'!$G$16 -> 18
F17: FECHA DE COTIZACION :
F18: =NOW() -> 2023-08-16T10:38:41 | J18: =+'INGRESO DE DATOS'!$J$14 -> 1 | M18: =+'INGRESO DE DATOS'!$J$16 -> 18
J20: TRUE | M20: =IF(M16>=M18,M16,M18) -> 18
F22: CONDICION CRITICA CUBIERTA | I22: MAXIMO POR AÑO POLIZA | K22: TRASPLANTE DE ORGANOS
F24: Enfermedades neurológicas y accidentes cerebro-vasculares | I24: 150000 | K24: Tipo de trasplante | M24: Máximo Vitalicio
I25: por asegurado por año póliza | M25: por persona
F26: Cirugías cardíacas y angioplastías | I26: 150000 | K26: Corazón | M26: 300000
I27: por asegurado por año póliza | K27: Corazón y Pulmón (simultáneamente) | M27: 300000
F28: Tratamiento de cáncer | I28: 200000 | K28: Pulmón | M28: 250000
I29: por asegurado por año póliza | K29: Pancreas | M29: 250000
F30: Trauma grave (Politraumatismos) | I30: 150000 | K30: Pancreas y Riñón (simultáneamente) | M30: 300000
I31: por asegurado por año póliza | K31: Riñón | M31: 200000
F32: Insuficiencia renal crónica (Diálisis) | I32: 100000 | K32: Hígado | M32: 200000
I33: por asegurado por año póliza | K33: Médula ósea | M33: 250000
F34: Quemaduras graves | I34: 300000 | K34: La cobertura de trasplante de órganos está limitada a la Red de Proveedores para Procedimiento de Trasplante de la Compañía y no se proporcionará cobertura en proveedores fuera de esta Red especializada.
I35: por asegurado por año póliza
F36: Desorden infeccioso grave (Septicemia) | I36: 150000
I37: por asegurado por año póliza
F39: Deducibles | H39: PLAN 1 | I39: PLAN 2 | J39: PLAN 3 | K39: PLAN 4 | L39: PLAN 5 | M39: PLAN 6
F40: Dentro del pais de residencia | H40: 2000 | I40: 3500 | J40: 5000 | K40: 10000 | L40: 20000 | M40: 50000
F41: Fuera del pais de residencia | H41: 2000 | I41: 3500 | J41: 5000 | K41: 10000 | L41: 20000 | M41: 50000
F43: Tarifas Anuales
F44: Prima por plan individual : | H44: =IF((($J$16+$J$18)=1),(VLOOKUP($M$20,Tablas!$A$543:$T$544,3,TRUE)),0) -> 0 | I44: =IF((($J$16+$J$18)=1),(VLOOKUP($M$20,Tablas!$A$543:$T$544,6,TRUE)),0) -> 0 | J44: =IF((($J$16+$J$18)=1),(VLOOKUP($M$20,Tablas!$A$543:$T$544,9,TRUE)),0) -> 0 | K44: =IF((($J$16+$J$18)=1),(VLOOKUP($M$20,Tablas!$A$543:$T$544,12,TRUE)),0) -> 0 | L44: =IF((($J$16+$J$18)=1),(VLOOKUP($M$20,Tablas!$A$543:$T$544,15,TRUE)),0) -> 0 | M44: =IF((($J$16+$J$18)=1),(VLOOKUP($M$20,Tablas!$A$543:$T$544,18,TRUE)),0) -> 0
F45: Prima por plan para 2 personas : | H45: =IF((($J$16+$J$18)=2),(VLOOKUP($M$20,Tablas!$A$543:$T$544,4,TRUE)),0) -> 0 | I45: =IF((($J$16+$J$18)=2),(VLOOKUP($M$20,Tablas!$A$543:$T$544,7,TRUE)),0) -> 0 | J45: =IF((($J$16+$J$18)=2),(VLOOKUP($M$20,Tablas!$A$543:$T$544,10,TRUE)),0) -> 0 | K45: =IF((($J$16+$J$18)=2),(VLOOKUP($M$20,Tablas!$A$543:$T$544,13,TRUE)),0) -> 0 | L45: =IF((($J$16+$J$18)=2),(VLOOKUP($M$20,Tablas!$A$543:$T$544,16,TRUE)),0) -> 0 | M45: =IF((($J$16+$J$18)=2),(VLOOKUP($M$20,Tablas!$A$543:$T$544,19,TRUE)),0) -> 0
F46: Prima por plan familiar : | H46: =IF((($J$16+$J$18)>=3),(VLOOKUP($M$20,Tablas!$A$543:$T$544,5,TRUE)),0) -> 13529 | I46: =IF((($J$16+$J$18)>=3),(VLOOKUP($M$20,Tablas!$A$543:$T$544,8,TRUE)),0) -> 11418 | J46: =IF((($J$16+$J$18)>=3),(VLOOKUP($M$20,Tablas!$A$543:$T$544,11,TRUE)),0) -> 9785 | K46: =IF((($J$16+$J$18)>=3),(VLOOKUP($M$20,Tablas!$A$543:$T$544,14,TRUE)),0) -> 7399 | L46: =IF((($J$16+$J$18)>=3),(VLOOKUP($M$20,Tablas!$A$543:$T$544,17,TRUE)),0) -> 5118 | M46: =IF((($J$16+$J$18)>=3),(VLOOKUP($M$20,Tablas!$A$543:$T$544,20,TRUE)),0) -> 2678
F47: TOTAL PRIMA NETA : | H47: =SUM(H44:H46) -> 13529 | I47: =SUM(I44:I46) -> 11418 | J47: 9785 | K47: 7399 | L47: 5118 | M47: 2678
F48: Costo Administrativo Anual : | H48: 75 | I48: 75 | J48: 75 | K48: 75 | L48: 75 | M48: 75
F49: GRAN TOTAL : | H49: =SUM(H47:H48) -> 13604 | I49: 11493 | J49: 9860 | K49: 7474 | L49: 5193 | M49: 2753
F50: Tarifas en US $ - Válidas desde 01 enero 2023
F52: Este presupuesto solamente tiene carácter informativo y en ningún momento expresa compromiso legal para suministrarle cobertura de seguro. La emisión de una póliza de seguro Bupa está sujeta a todas las evaluaciones de riesgo por parte de Bupa y a la recepción de todos los pagos de prima requeridos.

Sheet Resumen tarifas anuales
C12: Cotización de Seguro Médico Internacional - BUPA CARE
C14: =+'INGRESO DE DATOS'!$D$12 -> NOMBRE COMPLETO
C16: =+'INGRESO DE DATOS'!$D$21 -> AGENCIA
E18: =+'INGRESO DE DATOS'!$G$14 -> 2 | H18: =+'INGRESO DE DATOS'!$G$16 -> 18
A19: FECHA DE COTIZACION :
A20: =NOW() -> 2023-08-16T10:38:41 | E20: =+'INGRESO DE DATOS'!$J$14 -> 1 | H20: =+'INGRESO DE DATOS'!$J$16 -> 18
A22: Deducibles | C22: PLAN 1 | D22: PLAN 2 | E22: PLAN 3 | F22: PLAN 4 | G22: PLAN 5 | H22: PLAN 6
A23: Dentro del pais de residencia | C23: n/a | D23: 1000 | E23: 2000 | F23: 5000 | G23: 10000 | H23: 20000
A24: Fuera del pais de residencia | C24: n/a | D24: 2000 | E24: 3000 | F24: 5000 | G24: 10000 | H24: 20000
A26: PRODUCTOS | C26: Tarifas Anuales
A27: Bupa Exclusive Care | C27: n/a | D27: =+Exclusive!I37 -> 40092 | E27: =+Exclusive!J37 -> 26986 | F27: =+Exclusive!K37 -> 19695 | G27: =+Exclusive!L37 -> 14550 | H27: =+Exclusive!M37 -> 11509
A28: Bupa Privilege Care | C28: n/a | D28: =+Privilege!I37 -> 33725 | E28: =+Privilege!J37 -> 23412 | F28: =+Privilege!K37 -> 16869 | G28: =+Privilege!L37 -> 12414 | H28: =+Privilege!M37 -> 9475
A29: Bupa Advantage Care | C29: n/a | D29: =+'Advantage (Mundial)'!I38 -> 23710 | E29: =+'Advantage (Mundial)'!J38 -> 17751 | F29: =+'Advantage (Mundial)'!K38 -> 13445 | G29: =+'Advantage (Mundial)'!L38 -> 10688 | H29: =+'Advantage (Mundial)'!M38 -> 8408
A30: Bupa Secure Care | C30: n/a | D30: =+Secure!I38 -> 18888 | E30: =+Secure!J38 -> 14246 | F30: =+Secure!K38 -> 11037 | G30: =+Secure!L38 -> 9619 | H30: =+Secure!M38 -> 7433
A31: Bupa Essential Care | C31: n/a | D31: =+Essential!I38 -> 12446 | E31: =+Essential!J38 -> 9298 | F31: =+Essential!K38 -> 7136 | G31: =+Essential!L38 -> 6198 | H31: =+Essential!M38 -> 4691
A33: Deducibles | C33: PLAN 1 | D33: PLAN 2 | E33: PLAN 3 | F33: PLAN 4 | G33: PLAN 5 | H33: PLAN 6
A34: Dentro del pais de residencia | C34: 2000 | D34: 3500 | E34: 5000 | F34: 10000 | G34: 20000 | H34: 50000
A35: Fuera del pais de residencia | C35: 2000 | D35: 3500 | E35: 5000 | F35: 10000 | G35: 20000 | H35: 50000
C36: Tarifas Anuales
A37: Bupa Critical Care | C37: =+Critical!H49 -> 13604 | D37: =+Critical!I49 -> 11493 | E37: =+Critical!J49 -> 9860 | F37: =+Critical!K49 -> 7474 | G37: =+Critical!L49 -> 5193 | H37: =+Critical!M49 -> 2753
A38: Tarifas en US $ - Válidas desde 01 enero 2023
A40: Este presupuesto solamente tiene carácter informativo y en ningún momento expresa compromiso legal para suministrarle cobertura de seguro. La emisión de una póliza de seguro Bupa está sujeta a todas las evaluaciones de riesgo por parte de Bupa y a la recepción de todos los pagos de prima requeridos.

Sheet Comparacion de Beneficios
A1: 2023 BUPA CARE COMPARACION DE BENEFICIOS

Sheet Tablas (hidden)
A2: EXCLUSIVE | J2: FACTOR SEMESTRAL : | L2: 0.53
A3: TARIFAS ANUALES
A4: EDAD
D5: DW2 | E5: DW3 | F5: DW4 | G5: DW5 | H5: DW6 | J5: 2 | K5: 6 | L5: 10 | M5: 14 | N5: 18
A6: 18 | B6: 18-24 | D6: 17049 | E6: 11277 | F6: 7932 | G6: 5639 | H6: 4442 | J6: 0 | K6: 0 | L6: 0 | M6: 0 | N6: 0
A7: 25 | B7: 25-29 | D7: 17883 | E7: 12455 | F7: 8783 | G7: 6253 | H7: 4918 | J7: 0 | K7: 0 | L7: 0 | M7: 0 | N7: 0
A8: 30 | B8: 30-34 | D8: 18596 | E8: 13353 | F8: 9834 | G8: 7484 | H8: 5904 | J8: 0 | K8: 0 | L8: 0 | M8: 0 | N8: 0
A9: 35 | B9: 35-39 | D9: 20825 | E9: 14951 | F9: 11017 | G9: 8380 | H9: 6611 | J9: 0 | K9: 0 | L9: 0 | M9: 0 | N9: 0
A10: 40 | B10: 40-44 | D10: 24135 | E10: 16341 | F10: 12222 | G10: 9207 | H10: 7261 | J10: 0 | K10: 0 | L10: 0 | M10: 0 | N10: 0
A11: 45 | B11: 45-49 | D11: 26983 | E11: 18281 | F11: 13650 | G11: 10289 | H11: 8110 | J11: 0 | K11: 0 | L11: 0 | M11: 0 | N11: 0
A12: 50 | B12: 50-54 | D12: 34527 | E12: 23968 | F12: 17819 | G12: 14528 | H12: 11463 | J12: 0 | K12: 0 | L12: 0 | M12: 0 | N12: 0
A13: 55 | B13: 55-59 | D13: 36731 | E13: 25505 | F13: 18954 | G13: 15466 | H13: 12205 | J13: 0 | K13: 0 | L13: 0 | M13: 0 | N13: 0
A14: 60 | B14: 60 | D14: 40010 | E14: 27825 | F14: 21806 | G14: 18619 | H14: 15155 | J14: 0 | K14: 0 | L14: 0 | M14: 0 | N14: 0
A15: 61 | B15: 61 | D15: 42986 | E15: 29902 | F15: 23410 | G15: 20017 | H15: 16277 | J15: 0 | K15: 0 | L15: 0 | M15: 0 | N15: 0
A16: 62 | B16: 62 | D16: 47062 | E16: 32735 | F16: 25646 | G16: 21900 | H16: 17819 | J16: 0 | K16: 0 | L16: 0 | M16: 0 | N16: 0
A17: 63 | B17: 63 | D17: 50034 | E17: 34807 | F17: 27256 | G17: 23299 | H17: 18946 | J17: 0 | K17: 0 | L17: 0 | M17: 0 | N17: 0
A18: 64 | B18: 64 | D18: 54124 | E18: 37664 | F18: 29489 | G18: 25192 | H18: 20495 | J18: 0 | K18: 0 | L18: 0 | M18: 0 | N18: 0
A19: 65 | B19: 65 | D19: 70739 | E19: 49116 | F19: 37279 | G19: 33590 | H19: 28900 | J19: 0 | K19: 0 | L19: 0 | M19: 0 | N19: 0
A20: 66 | B20: 66 | D20: 82175 | E20: 57063 | F20: 43320 | G20: 39038 | H20: 33576 | J20: 0 | K20: 0 | L20: 0 | M20: 0 | N20: 0
A21: 67 | B21: 67 | D21: 89768 | E21: 62328 | F21: 47310 | G21: 42629 | H21: 36662 | J21: 0 | K21: 0 | L21: 0 | M21: 0 | N21: 0
A22: 68 | B22: 68 | D22: 99383 | E22: 69006 | F22: 52382 | G22: 47217 | H22: 40604 | J22: 0 | K22: 0 | L22: 0 | M22: 0 | N22: 0
A23: 69 | B23: 69 | D23: 109360 | E23: 75928 | F23: 57629 | G23: 51942 | H23: 44674 | J23: 0 | K23: 0 | L23: 0 | M23: 0 | N23: 0
A24: 70 | B24: 70 | D24: 134578 | E24: 92446 | F24: 67846 | G24: 60522 | H24: 52545 | J24: 0 | K24: 0 | L24: 0 | M24: 0 | N24: 0
A25: 71 | B25: 71 | D25: 139861 | E25: 96079 | F25: 70504 | G25: 62902 | H25: 54601 | J25: 0 | K25: 0 | L25: 0 | M25: 0 | N25: 0
A26: 72 | B26: 72 | D26: 143826 | E26: 98789 | F26: 72493 | G26: 64679 | H26: 56154 | J26: 0 | K26: 0 | L26: 0 | M26: 0 | N26: 0
A27: 73 | B27: 73 | D27: 149106 | E27: 102422 | F27: 75162 | G27: 67062 | H27: 58218 | J27: 0 | K27: 0 | L27: 0 | M27: 0 | N27: 0
A28: 74 | B28: 74 | D28: 151737 | E28: 104227 | F28: 76489 | G28: 68240 | H28: 59250 | J28: 0 | K28: 0 | L28: 0 | M28: 0 | N28: 0
A29: 75 | B29: 75+ | D29: 158351 | E29: 108765 | F29: 79817 | G29: 71219 | H29: 61826 | J29: 0 | K29: 0 | L29: 0 | M29: 0 | N29: 0
A30: 1 | B30: 1 Child | D30: 5919 | E30: 4357 | F30: 3531 | G30: 2972 | H30: 2325 | J30: 0 | K30: 0 | L30: 0 | M30: 0 | N30: 0
A31: 2 | B31: 2 Children | D31: 9401 | E31: 6935 | F31: 5615 | G31: 4730 | H31: 3675 | J31: 0 | K31: 0 | L31: 0 | M31: 0 | N31: 0
A32: 3 | B32: 3+ Children | D32: 13786 | E32: 10149 | F32: 8232 | G32: 6927 | H32: 5394 | J32: 0 | K32: 0 | L32: 0 | M32: 0 | N32: 0
A33: 1 | B33: Rider Comp. Maternidad | C33: 0 | D33: 0 | E33: 0 | F33: 225 | G33: 225 | H33: 225
A34: 1 | B34: Transplante de organos | C34: 0 | D34: 0 | E34: 0 | F34: 0 | G34: 0 | H34: 0
A36: TARIFAS SEMESTRALES
A37: EDAD
D38: DW2 | E38: DW3 | F38: DW4 | G38: DW5 | H38: DW6 | J38: 3 | K38: 7 | L38: 11 | M38: 15 | N38: 19
A39: 18 | B39: 18-24 | D39: =$L$2*D6 -> 9035.97 | E39: =$L$2*E6 -> 5976.81 | F39: 4203.96 | G39: 2988.67 | H39: 2354.26 | J39: 0 | K39: 0 | L39: 0 | M39: 0 | N39: 0
A40: 25 | B40: 25-29 | D40: =$L$2*D7 -> 9477.99 | E40: =$L$2*E7 -> 6601.15 | F40: 4654.99 | G40: 3314.09 | H40: 2606.54 | J40: 0 | K40: 0 | L40: 0 | M40: 0 | N40: 0
A41: 30 | B41: 30-34 | D41: 9855.88 | E41: =$L$2*E8 -> 7077.09 | F41: 5212.02 | G41: 3966.52 | H41: 3129.12 | J41: 0 | K41: 0 | L41: 0 | M41: 0 | N41: 0
A42: 35 | B42: 35-39 | D42: 11037.25 | E42: =$L$2*E9 -> 7924.03 | F42: 5839.01 | G42: 4441.4 | H42: 3503.83 | J42: 0 | K42: 0 | L42: 0 | M42: 0 | N42: 0
A43: 40 | B43: 40-44 | D43: 12791.55 | E43: =$L$2*E10 -> 8660.73 | F43: 6477.66 | G43: 4879.71 | H43: 3848.33 | J43: 0 | K43: 0 | L43: 0 | M43: 0 | N43: 0
A44: 45 | B44: 45-49 | D44: 14300.99 | E44: =$L$2*E11 -> 9688.93 | F44: 7234.5 | G44: 5453.17 | H44: 4298.3 | J44: 0 | K44: 0 | L44: 0 | M44: 0 | N44: 0
A45: 50 | B45: 50-54 | D45: 18299.31 | E45: =$L$2*E12 -> 12703.04 | F45: 9444.07 | G45: 7699.84 | H45: 6075.39 | J45: 0 | K45: 0 | L45: 0 | M45: 0 | N45: 0
A46: 55 | B46: 55-59 | D46: 19467.43 | E46: =$L$2*E13 -> 13517.65 | F46: 10045.62 | G46: 8196.98 | H46: 6468.65 | J46: 0 | K46: 0 | L46: 0 | M46: 0 | N46: 0
A47: 60 | B47: 60 | D47: 21205.3 | E47: =$L$2*E14 -> 14747.25 | F47: 11557.18 | G47: 9868.07 | H47: 8032.15 | J47: 0 | K47: 0 | L47: 0 | M47: 0 | N47: 0
A48: 61 | B48: 61 | D48: 22782.58 | E48: =$L$2*E15 -> 15848.06 | F48: 12407.3 | G48: 10609.01 | H48: 8626.81 | J48: 0 | K48: 0 | L48: 0 | M48: 0 | N48: 0
A49: 62 | B49: 62 | D49: 24942.86 | E49: =$L$2*E16 -> 17349.55 | F49: 13592.38 | G49: 11607 | H49: 9444.07 | J49: 0 | K49: 0 | L49: 0 | M49: 0 | N49: 0
A50: 63 | B50: 63 | D50: 26518.02 | E50: =$L$2*E17 -> 18447.71 | F50: 14445.68 | G50: 12348.47 | H50: 10041.38 | J50: 0 | K50: 0 | L50: 0 | M50: 0 | N50: 0
A51: 64 | B51: 64 | D51: 28685.72 | E51: =$L$2*E18 -> 19961.92 | F51: 15629.17 | G51: 13351.76 | H51: 10862.35 | J51: 0 | K51: 0 | L51: 0 | M51: 0 | N51: 0
A52: 65 | B52: 65 | D52: 37491.67 | E52: =$L$2*E19 -> 26031.48 | F52: 19757.87 | G52: 17802.7 | H52: 15317 | J52: 0 | K52: 0 | L52: 0 | M52: 0 | N52: 0
A53: 66 | B53: 66 | D53: 43552.75 | E53: =$L$2*E20 -> 30243.39 | F53: 22959.6 | G53: 20690.14 | H53: 17795.28 | J53: 0 | K53: 0 | L53: 0 | M53: 0 | N53: 0
A54: 67 | B54: 67 | D54: 47577.04 | E54: =$L$2*E21 -> 33033.84 | F54: 25074.3 | G54: 22593.37 | H54: 19430.86 | J54: 0 | K54: 0 | L54: 0 | M54: 0 | N54: 0
A55: 68 | B55: 68 | D55: 52672.99 | E55: =$L$2*E22 -> 36573.18 | F55: 27762.46 | G55: 25025.01 | H55: 21520.12 | J55: 0 | K55: 0 | L55: 0 | M55: 0 | N55: 0
A56: 69 | B56: 69 | D56: 57960.8 | E56: =$L$2*E23 -> 40241.84 | F56: 30543.37 | G56: 27529.26 | H56: 23677.22 | J56: 0 | K56: 0 | L56: 0 | M56: 0 | N56: 0
A57: 70 | B57: 70 | D57: 71326.34 | E57: =$L$2*E24 -> 48996.38 | F57: 35958.38 | G57: 32076.66 | H57: 27848.85 | J57: 0 | K57: 0 | L57: 0 | M57: 0 | N57: 0
A58: 71 | B58: 71 | D58: 74126.33 | E58: =$L$2*E25 -> 50921.87 | F58: 37367.12 | G58: 33338.06 | H58: 28938.53 | J58: 0 | K58: 0 | L58: 0 | M58: 0 | N58: 0
A59: 72 | B59: 72 | D59: 76227.78 | E59: =$L$2*E26 -> 52358.17 | F59: 38421.29 | G59: 34279.87 | H59: 29761.62 | J59: 0 | K59: 0 | L59: 0 | M59: 0 | N59: 0
A60: 73 | B60: 73 | D60: 79026.18 | E60: =$L$2*E27 -> 54283.66 | F60: 39835.86 | G60: 35542.86 | H60: 30855.54 | J60: 0 | K60: 0 | L60: 0 | M60: 0 | N60: 0
A61: 74 | B61: 74 | D61: 80420.61 | E61: =$L$2*E28 -> 55240.31 | F61: 40539.17 | G61: 36167.2 | H61: 31402.5 | J61: 0 | K61: 0 | L61: 0 | M61: 0 | N61: 0
A62: 75 | B62: 75+ | D62: 83926.03 | E62: =$L$2*E29 -> 57645.45 | F62: 42303.01 | G62: 37746.07 | H62: 32767.78 | J62: 0 | K62: 0 | L62: 0 | M62: 0 | N62: 0
A63: 1 | B63: 1 Child | D63: 3137.07 | E63: =$L$2*E30 -> 2309.21 | F63: 1871.43 | G63: 1575.16 | H63: 1232.25 | J63: 0 | K63: 0 | L63: 0 | M63: 0 | N63: 0
A64: 2 | B64: 2 Children | D64: 4982.53 | E64: =$L$2*E31 -> 3675.55 | F64: 2975.95 | G64: 2506.9 | H64: 1947.75 | J64: 0 | K64: 0 | L64: 0 | M64: 0 | N64: 0
A65: 3 | B65: 3+ Children | D65: 7306.58 | E65: =$L$2*E32 -> 5378.97 | F65: 4362.96 | G65: 3671.31 | H65: 2858.82 | J65: 0 | K65: 0 | L65: 0 | M65: 0 | N65: 0
A66: 1 | B66: Rider Comp. Maternidad | C66: =+C33*$L$2 -> 0 | D66: 0 | E66: 0 | F66: 119.25 | G66: 119.25 | H66: 119.25
A67: 1 | B67: Transplante de organos | C67: 0 | D67: 0 | E67: 0 | F67: 0 | G67: 0 | H67: 0
A69: DIAMOND (LATINAMERICA ONLY)
A70: TARIFAS ANUALES
A71: EDAD
A73: 18 | B73: - 24
A74: 25 | B74: - 29
A75: 30 | B75: - 34
A76: 35 | B76: - 39
A77: 40 | B77: - 44
A78: 45 | B78: - 49
A79: 50 | B79: - 54
A80: 55 | B80: - 59
A81: 60
A82: 61
A83: 62
A84: 63
A85: 64
A86: 65
A87: 66
A88: 67
A89: 68
A90: 69
A91: 70
A92: 71
A93: 72
A94: 73
A95: 74
A96: 75 | B96: o más
A97: 1 | B97: Hijo
A98: 2 | B98: Hijos
A99: 3 | B99: Hijos o más
A100: 1 | B100: Rider Comp. Maternidad
A101: 1 | B101: Transplante de organos
A103: TARIFAS SEMESTRALES
A104: EDAD
A106: 18 | B106: - 24
A107: 25 | B107: - 29
A108: 30 | B108: - 34
A109: 35 | B109: - 39
A110: 40 | B110: - 44
A111: 45 | B111: - 49
A112: 50 | B112: - 54
A113: 55 | B113: - 59
A114: 60
A115: 61
A116: 62
A117: 63
A118: 64
A119: 65
A120: 66
A121: 67
A122: 68
A123: 69
A124: 70
A125: 71
A126: 72
A127: 73
A128: 74
A129: 75 | B129: o más
A130: 1 | B130: Hijo
A131: 2 | B131: Hijos
A132: 3 | B132: Hijos o más
A133: 1 | B133: Rider Comp. Maternidad
A134: 1 | B134: Transplante de organos
A136: PRIVILEGE
A137: TARIFAS ANUALES
A138: EDAD
D139: CW2 | E139: CW3 | F139: CW4 | G139: CW5 | H139: CW6 | J139: 2 | K139: 6 | L139: 10 | M139: 14 | N139: 18
A140: 18 | B140: 18-24 | D140: 14336 | E140: 9850 | F140: 6887 | G140: 4879 | H140: 3717 | J140: 0 | K140: 0 | L140: 0 | M140: 0 | N140: 0
A141: 25 | B141: 25-29 | D141: 15044 | E141: 10899 | F141: 7630 | G141: 5406 | H141: 4125 | J141: 0 | K141: 0 | L141: 0 | M141: 0 | N141: 0
A142: 30 | B142: 30-34 | D142: 15714 | E142: 11681 | F142: 8549 | G142: 6546 | H142: 4993 | J142: 0 | K142: 0 | L142: 0 | M142: 0 | N142: 0
A143: 35 | B143: 35-39 | D143: 17596 | E143: 13073 | F143: 9581 | G143: 7334 | H143: 5598 | J143: 0 | K143: 0 | L143: 0 | M143: 0 | N143: 0
A144: 40 | B144: 40-44 | D144: 20364 | E144: 14321 | F144: 10653 | G144: 8085 | H144: 6167 | J144: 0 | K144: 0 | L144: 0 | M144: 0 | N144: 0
A145: 45 | B145: 45-49 | D145: 22748 | E145: 16003 | F145: 11917 | G145: 9028 | H145: 6902 | J145: 0 | K145: 0 | L145: 0 | M145: 0 | N145: 0
A146: 50 | B146: 50-54 | D146: 29742 | E146: 21103 | F146: 15637 | G146: 12890 | H146: 9857 | J146: 0 | K146: 0 | L146: 0 | M146: 0 | N146: 0
A147: 55 | B147: 55-59 | D147: 31642 | E147: 22454 | F147: 16640 | G147: 13716 | H147: 10490 | J147: 0 | K147: 0 | L147: 0 | M147: 0 | N147: 0
A148: 60 | B148: 60 | D148: 34458 | E148: 24393 | F148: 18934 | G148: 16319 | H148: 13099 | J148: 0 | K148: 0 | L148: 0 | M148: 0 | N148: 0
A149: 61 | B149: 61 | D149: 37017 | E149: 26195 | F149: 20338 | G149: 17527 | H149: 14072 | J149: 0 | K149: 0 | L149: 0 | M149: 0 | N149: 0
A150: 62 | B150: 62 | D150: 40522 | E150: 28685 | F150: 22276 | G150: 19191 | H150: 15414 | J150: 0 | K150: 0 | L150: 0 | M150: 0 | N150: 0
A151: 63 | B151: 63 | D151: 43092 | E151: 30496 | F151: 23677 | G151: 20406 | H151: 16382 | J151: 0 | K151: 0 | L151: 0 | M151: 0 | N151: 0
A152: 64 | B152: 64 | D152: 46601 | E152: 32988 | F152: 25609 | G152: 22070 | H152: 17736 | J152: 0 | K152: 0 | L152: 0 | M152: 0 | N152: 0
A153: 65 | B153: 65 | D153: 60917 | E153: 43030 | F153: 32383 | G153: 29424 | H153: 24994 | J153: 0 | K153: 0 | L153: 0 | M153: 0 | N153: 0
A154: 66 | B154: 66 | D154: 70766 | E154: 49997 | F154: 37622 | G154: 34198 | H154: 29045 | J154: 0 | K154: 0 | L154: 0 | M154: 0 | N154: 0
A155: 67 | B155: 67 | D155: 77300 | E155: 54609 | F155: 41089 | G155: 37348 | H155: 31715 | J155: 0 | K155: 0 | L155: 0 | M155: 0 | N155: 0
A156: 68 | B156: 68 | D156: 85598 | E156: 60462 | F156: 45511 | G156: 41367 | H156: 35121 | J156: 0 | K156: 0 | L156: 0 | M156: 0 | N156: 0
A157: 69 | B157: 69 | D157: 94165 | E157: 66518 | F157: 50063 | G157: 45504 | H157: 38646 | J157: 0 | K157: 0 | L157: 0 | M157: 0 | N157: 0
A158: 70 | B158: 70 | D158: 115892 | E158: 80985 | F158: 58922 | G158: 53030 | H158: 45451 | J158: 0 | K158: 0 | L158: 0 | M158: 0 | N158: 0
A159: 71 | B159: 71 | D159: 120434 | E159: 84164 | F159: 61244 | G159: 55106 | H159: 47237 | J159: 0 | K159: 0 | L159: 0 | M159: 0 | N159: 0
A160: 72 | B160: 72 | D160: 123837 | E160: 86554 | F160: 62971 | G160: 56666 | H160: 48575 | J160: 0 | K160: 0 | L160: 0 | M160: 0 | N160: 0
A161: 73 | B161: 73 | D161: 128406 | E161: 89729 | F161: 65289 | G161: 58743 | H161: 50361 | J161: 0 | K161: 0 | L161: 0 | M161: 0 | N161: 0
A162: 74 | B162: 74 | D162: 130673 | E162: 91322 | F162: 66440 | G162: 59786 | H162: 51247 | J162: 0 | K162: 0 | L162: 0 | M162: 0 | N162: 0
A163: 75 | B163: 75+ | D163: 136358 | E163: 95287 | F163: 69334 | G163: 62392 | H163: 53478 | J163: 0 | K163: 0 | L163: 0 | M163: 0 | N163: 0
A164: 1 | B164: 1 Child | D164: 4978 | E164: 3637 | F164: 2795 | G164: 2356 | H164: 1741 | J164: 0 | K164: 0 | L164: 0 | M164: 0 | N164: 0
A165: 2 | B165: 2 Children | D165: 7915 | E165: 5788 | F165: 4453 | G165: 3753 | H165: 2776 | J165: 0 | K165: 0 | L165: 0 | M165: 0 | N165: 0
A166: 3 | B166: 3+ Children | D166: 11588 | E166: 8475 | F166: 6522 | G166: 5494 | H166: 4070 | J166: 0 | K166: 0 | L166: 0 | M166: 0 | N166: 0
A167: 1 | B167: Rider Comp. Maternidad | C167: 0 | D167: 0 | E167: 0 | F167: 225 | G167: 225 | H167: 225
A168: 1 | B168: Transplante de organos | C168: 0 | D168: 0 | E168: 0 | F168: 0 | G168: 0 | H168: 0
A170: TARIFAS SEMESTRALES
A171: EDAD
D172: CW2 | E172: CW3 | F172: CW4 | G172: CW5 | H172: CW6 | J172: 3 | K172: 7 | L172: 11 | M172: 15 | N172: 19
A173: 18 | B173: 18-24 | C173: =+C140*$L$2 -> 0 | D173: =$L$2*D140 -> 7598.08 | E173: =$L$2*E140 -> 5220.5 | F173: 3650.11 | G173: 2585.87 | H173: 1970.01 | J173: 0 | K173: 0 | L173: 0 | M173: 0 | N173: 0
A174: 25 | B174: 25-29 | C174: 0 | D174: =$L$2*D141 -> 7973.32 | E174: 5776.47 | F174: 4043.9 | G174: 2865.18 | H174: 2186.25 | J174: 0 | K174: 0 | L174: 0 | M174: 0 | N174: 0
A175: 30 | B175: 30-34 | C175: 0 | D175: 8328.42 | E175: 6190.93 | F175: 4530.97 | G175: 3469.38 | H175: 2646.29 | J175: 0 | K175: 0 | L175: 0 | M175: 0 | N175: 0
A176: 35 | B176: 35-39 | C176: 0 | D176: 9325.88 | E176: 6928.69 | F176: 5077.93 | G176: 3887.02 | H176: 2966.94 | J176: 0 | K176: 0 | L176: 0 | M176: 0 | N176: 0
A177: 40 | B177: 40-44 | C177: 0 | D177: 10792.92 | E177: 7590.13 | F177: 5646.09 | G177: 4285.05 | H177: 3268.51 | J177: 0 | K177: 0 | L177: 0 | M177: 0 | N177: 0
A178: 45 | B178: 45-49 | C178: 0 | D178: 12056.44 | E178: 8481.59 | F178: 6316.01 | G178: 4784.84 | H178: 3658.06 | J178: 0 | K178: 0 | L178: 0 | M178: 0 | N178: 0
A179: 50 | B179: 50-54 | C179: 0 | D179: 15763.26 | E179: 11184.59 | F179: 8287.61 | G179: 6831.7 | H179: 5224.21 | J179: 0 | K179: 0 | L179: 0 | M179: 0 | N179: 0
A180: 55 | B180: 55-59 | C180: 0 | D180: 16770.26 | E180: 11900.62 | F180: 8819.2 | G180: 7269.48 | H180: 5559.7 | J180: 0 | K180: 0 | L180: 0 | M180: 0 | N180: 0
A181: 60 | B181: 60 | C181: 0 | D181: 18262.74 | E181: 12928.29 | F181: 10035.02 | G181: =$L$2*G148 -> 8649.07 | H181: 6942.47 | J181: 0 | K181: 0 | L181: 0 | M181: 0 | N181: 0
A182: 61 | B182: 61 | C182: 0 | D182: 19619.01 | E182: 13883.35 | F182: 10779.14 | G182: 9289.31 | H182: 7458.16 | J182: 0 | K182: 0 | L182: 0 | M182: 0 | N182: 0
A183: 62 | B183: 62 | C183: =+C150*$L$2 -> 0 | D183: =$L$2*D150 -> 21476.66 | E183: 15203.05 | F183: 11806.28 | G183: 10171.23 | H183: 8169.42 | J183: 0 | K183: 0 | L183: 0 | M183: 0 | N183: 0
A184: 63 | B184: 63 | C184: 0 | D184: 22838.76 | E184: 16162.88 | F184: 12548.81 | G184: 10815.18 | H184: 8682.46 | J184: 0 | K184: 0 | L184: 0 | M184: 0 | N184: 0
A185: 64 | B185: 64 | C185: 0 | D185: 24698.53 | E185: 17483.64 | F185: 13572.77 | G185: 11697.1 | H185: 9400.08 | J185: 0 | K185: 0 | L185: 0 | M185: 0 | N185: 0
A186: 65 | B186: 65 | C186: 0 | D186: 32286.01 | E186: 22805.9 | F186: 17162.99 | G186: 15594.72 | H186: 13246.82 | J186: 0 | K186: 0 | L186: 0 | M186: 0 | N186: 0
A187: 66 | B187: 66 | C187: 0 | D187: 37505.98 | E187: 26498.41 | F187: 19939.66 | G187: 18124.94 | H187: 15393.85 | J187: 0 | K187: 0 | L187: 0 | M187: 0 | N187: 0
A188: 67 | B188: 67 | C188: 0 | D188: 40969 | E188: 28942.77 | F188: 21777.17 | G188: 19794.44 | H188: 16808.95 | J188: 0 | K188: 0 | L188: 0 | M188: 0 | N188: 0
A189: 68 | B189: 68 | C189: 0 | D189: 45366.94 | E189: 32044.86 | F189: 24120.83 | G189: 21924.51 | H189: 18614.13 | J189: 0 | K189: 0 | L189: 0 | M189: 0 | N189: 0
A190: 69 | B190: 69 | C190: 0 | D190: 49907.45 | E190: 35254.54 | F190: 26533.39 | G190: 24117.12 | H190: 20482.38 | J190: 0 | K190: 0 | L190: 0 | M190: 0 | N190: 0
A191: 70 | B191: 70 | C191: 0 | D191: 61422.76 | E191: 42922.05 | F191: 31228.66 | G191: 28105.9 | H191: =$L$2*H158 -> 24089.03 | J191: 0 | K191: 0 | L191: 0 | M191: 0 | N191: 0
A192: 71 | B192: 71 | C192: 0 | D192: 63830.02 | E192: 44606.92 | F192: 32459.32 | G192: 29206.18 | H192: 25035.61 | J192: 0 | K192: 0 | L192: 0 | M192: 0 | N192: 0
A193: 72 | B193: 72 | C193: =+C160*$L$2 -> 0 | D193: 65633.61 | E193: 45873.62 | F193: 33374.63 | G193: 30032.98 | H193: 25744.75 | J193: 0 | K193: 0 | L193: 0 | M193: 0 | N193: 0
A194: 73 | B194: 73 | C194: 0 | D194: 68055.18 | E194: 47556.37 | F194: 34603.17 | G194: 31133.79 | H194: 26691.33 | J194: 0 | K194: 0 | L194: 0 | M194: 0 | N194: 0
A195: 74 | B195: 74 | C195: 0 | D195: 69256.69 | E195: 48400.66 | F195: 35213.2 | G195: 31686.58 | H195: 27160.91 | J195: 0 | K195: 0 | L195: 0 | M195: 0 | N195: 0
A196: 75 | B196: 75+ | C196: 0 | D196: 72269.74 | E196: 50502.11 | F196: 36747.02 | G196: 33067.76 | H196: 28343.34 | J196: 0 | K196: 0 | L196: 0 | M196: 0 | N196: 0
A197: 1 | B197: 1 Child | C197: 0 | D197: 2638.34 | E197: 1927.61 | F197: 1481.35 | G197: 1248.68 | H197: 922.73 | J197: 0 | K197: 0 | L197: 0 | M197: 0 | N197: 0
A198: 2 | B198: 2 Children | C198: 0 | D198: 4194.95 | E198: 3067.64 | F198: 2360.09 | G198: 1989.09 | H198: 1471.28 | J198: 0 | K198: 0 | L198: 0 | M198: 0 | N198: 0
A199: 3 | B199: 3+ Children | C199: 0 | D199: 6141.64 | E199: 4491.75 | F199: 3456.66 | G199: 2911.82 | H199: 2157.1 | J199: 0 | K199: 0 | L199: 0 | M199: 0 | N199: 0
A200: 1 | B200: Rider Comp. Maternidad | C200: 0 | D200: 0 | E200: 0 | F200: 119.25 | G200: 119.25 | H200: 119.25
A201: 1 | B201: Transplante de organos | C201: 0 | D201: 0 | E201: 0 | F201: 0 | G201: 0 | H201: 0
A203: COMPLETE (LATINAMERICA ONLY)
A204: TARIFAS ANUALES
A205: EDAD
A207: 18 | B207: - 24
A208: 25 | B208: - 29
A209: 30 | B209: - 34
A210: 35 | B210: - 39
... 329 more rows
